fUSD/lending_fUSD_20260407
["ID","MTS","AMOUNT","RATE_DAILY","PERIOD"]
[419966746,1775569848339,-585.485952,0.00013699,2]
[419966747,1775569848349,-40.95127662,0.00013699,2]
[419966748,1775569848367,-110.04872338,0.00013699,2]
[419966749,1775569848378,-151.0,0.00013699,2]
[419966750,1775569848388,-585.485952,0.00013699,2]
[419966751,1775569848399,-151.0,0.00013699,2]
[419966752,1775569848410,-675.583973,0.00013699,2]
[419966753,1775569848420,-675.583973,0.00013699,2]
[419966754,1775569848431,-675.583973,0.00013699,2]
[419966755,1775569848441,-151.253973,0.00013699,2]
[419966756,1775569848452,-675.583973,0.00013699,2]
[419966757,1775569848462,-151.0,0.00013699,2]
[419966758,1775569848472,-151.664589,0.00013699,2]
[419966759,1775569848483,-151.0,0.00013699,2]
[419966760,1775569848492,-151.0,0.00013699,2]
[419966761,1775569848503,-151.0,0.00013699,2]
[419966762,1775569848513,-151.0,0.00013699,2]
[419966763,1775569848523,-151.0,0.00013699,2]
[419966764,1775569848533,-151.0,0.00013699,2]
[419966765,1775569848542,-151.0,0.00013699,2]
[419966766,1775569848552,-151.0,0.00013699,2]
[419966767,1775569848561,-151.0,0.00013699,2]
[419966768,1775569848571,-151.0,0.00013699,2]
[419966769,1775569848581,-362.774721,0.00013699,2]
[419966770,1775569848591,-151.0,0.00013699,2]
[419966771,1775569848601,-151.0,0.00013699,2]
[419966772,1775569848611,-151.0,0.00013699,2]
[419966773,1775569848620,-362.774721,0.00013699,2]
[419966774,1775569848630,-151.0,0.00013699,2]
[419966775,1775569848639,-151.0,0.00013699,2]
[419966776,1775569848649,-362.774721,0.00013699,2]
[419966777,1775569848658,-151.0,0.00013699,2]
[419966778,1775569848667,-362.774721,0.00013699,2]
[419966779,1775569848677,-151.0,0.00013699,2]
[419966780,1775569848686,-151.000002,0.00013699,2]
[419966781,1775569848696,-396.915849,0.00013699,2]
[419966782,1775569848706,-236.77247369,0.00013699,2]
[419966783,1775569848742,-44.91934631,0.00013699,2]
[419966784,1775569848752,-365.832177,0.00013699,2]
[419966785,1775569848762,-396.915849,0.00013699,2]
[419966786,1775569848772,-365.832177,0.00013699,2]
[419966787,1775569848781,-396.915849,0.00013699,2]
[419966788,1775569848791,-365.832177,0.00013699,2]
[419966789,1775569848800,-396.915849,0.00013699,2]
[419966790,1775569848809,-365.832177,0.00013699,2]
[419966791,1775569848818,-197.568857,0.00013699,2]
[419966792,1775569848827,-16.75964983,0.00013699,2]
[419966793,1775569848842,-134.24035017,0.00013699,2]
[419966794,1775569848852,-151.0,0.00013699,2]
[419966795,1775569848862,-151.0,0.00013699,2]
[419966796,1775569848871,-151.0,0.00013699,2]
[419966797,1775569848880,-151.0,0.00013699,2]
[419966798,1775569848890,-648.3013,0.00013699,2]
[419966799,1775569848900,-151.0,0.00013699,2]
[419966800,1775569848910,-151.0,0.00013699,2]
[419966801,1775569848920,-151.0,0.00013699,2]
[419966802,1775569849266,-151.0,0.00013699,2]
[419966803,1775569849278,-648.3013,0.00013699,2]
[419966804,1775569849289,-151.0,0.00013699,2]
[419966805,1775569849299,-522.715552,0.00013699,2]
[419966806,1775569849309,-648.3013,0.00013699,2]
[419966807,1775569849319,-151.0,0.00013699,2]
[419966808,1775569849329,-648.3013,0.00013699,2]
[419966809,1775569849340,-522.715552,0.00013699,2]
[419966810,1775569849351,-151.0,0.00013699,2]
[419966811,1775569849361,-152.119323,0.00013699,2]
[419966812,1775569849371,-522.715552,0.00013699,2]
[419966813,1775569849382,-151.0,0.00013699,2]
[419966814,1775569849392,-522.715552,0.00013699,2]
[419966815,1775569849401,-151.0,0.00013699,2]
[419966816,1775569849411,-151.0,0.00013699,2]
[419966817,1775569849421,-151.0,0.00013699,2]
[419966818,1775569849431,-151.0,0.00013699,2]
[419966819,1775569849442,-151.0,0.00013699,2]
[419966820,1775569849452,-151.0,0.00013699,2]
[419966821,1775569849463,-151.0,0.00013699,2]
[419966822,1775569849473,-151.0,0.00013699,2]
[419966823,1775569849483,-151.0,0.00013699,2]
[419966824,1775569849494,-426.611201,0.00013699,2]
[419966825,1775569849505,-426.611201,0.00013699,2]
[419966826,1775569849514,-151.0,0.00013699,2]
[419966827,1775569849525,-426.611201,0.00013699,2]
[419966828,1775569849534,-151.0,0.00013699,2]
[419966829,1775569849544,-426.611201,0.00013699,2]
[419966830,1775569849554,-500.0,0.00013699,2]
[419966831,1775569849564,-500.0,0.00013699,2]
[419966832,1775569849574,-500.0,0.00013699,2]
[419966833,1775569849584,-500.0,0.00013699,2]
[419966834,1775569849595,-500.0,0.00013699,2]
[419966835,1775569849604,-500.0,0.00013699,2]
[419966836,1775569849614,-500.0,0.00013699,2]
[419966837,1775569849625,-500.0,0.00013699,2]
[419966838,1775569849635,-500.0,0.00013699,2]
[419966839,1775569849645,-500.0,0.00013699,2]
[419966840,1775569849655,-500.0,0.00013699,2]
[419966841,1775569849665,-500.0,0.00013699,2]
[419966842,1775569849675,-500.0,0.00013699,2]
[419966843,1775569849685,-500.99241895,0.00013699,2]
[419966844,1775569849696,-189.6,0.00013699,2]
[419966845,1775569849705,-200.0,0.000137,2]
[419966846,1775569849714,-151.0,0.000137,2]
[419966847,1775569849724,-151.0,0.000137,2]
[419966848,1775569849734,-172211.55478293,0.000137,2]
[419966849,1775569850936,-464.43557753,0.000137,2]
[419966850,1775569850948,-42484.20915147,0.000137,2]
[419966851,1775569850961,-1771.7918838,0.000137,2]
[419966852,1775569850973,-314.55,0.000137,2]
[419966853,1775569942173,2203.61,6.397e-05,2]
[419966854,1775569942622,2203.61,6.733e-05,2]
[419966855,1775569942829,2203.61,7.07e-05,2]
[419966856,1775569943040,2203.61,7.407e-05,2]
[419966857,1775569943401,1185.57,7.743e-05,2]
[419966858,1775569943425,1018.04,7.743e-05,2]
[419966859,1775569943640,2203.61,8.08e-05,2]
[419966860,1775569943850,1778.36,8.417e-05,2]
[419966861,1775569943876,425.25,8.417e-05,2]
[419966862,1775569944133,2203.61,8.753e-05,2]
[419966863,1775569945907,2203.61,9.09e-05,2]
[419966864,1775569945951,167.54,9.427e-05,2]
[419966865,1775569945976,2036.07,9.427e-05,2]
[419966866,1775569946043,2203.61,9.763e-05,2]
[419966867,1775569946091,760.33,0.000101,2]
[419966868,1775569946115,1443.28,0.000101,2]
[419966869,1775569946335,2203.61,0.00010437,2]
[419966870,1775569946486,1353.12,0.00010773,2]
[419966871,1775569946519,500.0,0.00010773,2]
[419966872,1775569946548,350.49,0.00010773,2]
[419966873,1775569946595,149.51,0.0001111,2]
[419966874,1775569949561,-2054.1,0.0001111,2]
[419966875,1775569949715,-2203.61,0.00011447,2]
[419966878,1775569988454,164.0,0.00011526,2]
[419966882,1775570412567,-2203.61,0.00011783,2]
[419966883,1775570412788,-0.01,0.00011813,2]
[419966884,1775570412899,-0.02,0.00011813,2]
[419966885,1775570413122,-0.04,0.00011813,2]
[419966886,1775570415394,-0.08,0.00011813,2]
[419966887,1775570415539,-0.16,0.00011813,2]
[419966888,1775570415745,-0.32,0.00011813,2]
[419966889,1775570418425,-0.64,0.00011813,2]
[419966890,1775570418550,-1.28,0.00011813,2]
[419966891,1775570418673,-2.56,0.00011813,2]
[419966892,1775570418766,-5.12,0.00011813,2]
[419966893,1775570421950,-10.24,0.00011813,2]
[419966894,1775570422025,-20.48,0.00011813,2]
[419966895,1775570422079,-40.96,0.00011813,2]
[419966896,1775570422124,-81.92,0.00011813,2]
[419966897,1775570424476,-163.84,0.00011813,2]
[419966898,1775570424593,-327.68,0.00011813,2]
[419966899,1775570424731,-655.36,0.00011813,2]
[419966900,1775570424873,-1310.72,0.00011813,2]
[419966901,1775570491904,-2378.57,0.00011813,2]
[419966902,1775570491933,-209.26224314,0.00011813,2]
[419966903,1775570491965,-366.72962348,0.00011842,2]
[419966904,1775570491995,-193.0,0.00011902,2]
[419966905,1775570492025,-1200.0,0.00011932,2]
[419966906,1775570492054,-300.0,0.00011932,2]
[419966907,1775570492085,-300.0,0.00011932,2]
[419966908,1775570492219,-300.0,0.00011932,2]
[419966909,1775570492247,-4400.01,0.00011933,2]
[419966910,1775570492316,-599.99,0.00011933,2]
[419966911,1775570492346,-3800.03,0.00011933,2]
[419966912,1775570492462,-1199.97,0.00011933,2]
[419966913,1775570492492,-861.06145815,0.00011933,2]
[419966914,1775570492524,-2203.61,0.0001212,2]
[419966915,1775570492705,-1600.0,0.00012271,2]
[419966916,1775570492736,-2203.61,0.00012457,2]
[419966917,1775570492766,-392.79,0.00012499,2]
[419966918,1775570492987,-1607.21,0.00012499,2]
[419966919,1775570493022,-2203.61,0.00012793,2]
[419966920,1775570493054,-152.567,0.00012935,2]
[419966921,1775570493200,-4013.618,0.00012935,2]
[419966922,1775570493232,-193.0,0.00012962,2]
[419966923,1775570493262,-300.33636071,0.00012962,2]
[419966924,1775570493294,-250.0,0.00012962,2]
[419966925,1775570493380,-5000.0,0.00012962,2]
[419966926,1775570493481,-600.0,0.00012962,2]
[419966927,1775570493514,-500.0,0.000131,2]
[419966928,1775570493546,-506.0,0.000131,2]
[419966929,1775570493577,-250.0,0.000131,2]
[419966930,1775570493608,-420.0,0.000131,2]
[419966931,1775570493638,-788.6908763,0.0001311,2]
[419966932,1775570494588,-1237.78887644,0.0001311,2]
[419966933,1775570494699,-2632.83937096,0.0001311,2]
[419966934,1775570494731,-1306.72492504,0.0001311,2]
[419966935,1775570494769,-2120.881408,0.0001311,2]
[419966936,1775570494832,-897.05001155,0.0001311,2]
[419966937,1775570494866,-233.83060893,0.00013114,2]
[419966938,1775570494902,-1680.0,0.00013126,2]
[419966939,1775570494938,-500.0,0.00013208,2]
[419966940,1775570494974,-500.0,0.00013208,2]
[419966941,1775570495010,-500.0,0.00013208,2]
[419966942,1775570495046,-500.0,0.00013208,2]
[419966943,1775570495181,-500.0,0.00013208,2]
[419966944,1775570495220,-616.54599863,0.00013208,2]
[419966945,1775570495257,-500.0,0.00013208,2]
[419966946,1775570495297,-500.0,0.00013208,2]
[419966947,1775570495335,-500.0,0.00013208,2]
[419966948,1775570495373,-500.0,0.00013208,2]
[419966949,1775570495412,-500.0,0.00013208,2]
[419966950,1775570495451,-500.0,0.00013208,2]
[419966951,1775570495491,-500.0,0.00013208,2]
[419966952,1775570495530,-266.91800274,0.00013208,2]
[419966953,1775570495643,-233.08199726,0.00013208,2]
[419966954,1775570495679,-500.0,0.00013208,2]
[419966955,1775570495717,-500.0,0.00013208,2]
[419966956,1775570495755,-500.0,0.00013208,2]
[419966957,1775570495793,-500.0,0.00013208,2]
[419966958,1775570495832,-500.0,0.00013208,2]
[419966959,1775570495868,-539.63242624,0.00013208,2]
[419966960,1775570495905,-539.63242624,0.00013208,2]
[419966961,1775570495942,-539.63242624,0.00013208,2]
[419966962,1775570495979,-539.63242624,0.00013208,2]
[419966963,1775570496085,-209.26224315,0.0001311,2]
[419966964,1775570496123,-539.63242624,0.00013208,2]
[419966965,1775570496161,-539.63242624,0.00013208,2]
[419966966,1775570496199,-539.63242624,0.00013208,2]
[419966967,1775570496237,-539.63242624,0.00013208,2]
[419966968,1775570496273,-539.63242624,0.00013208,2]
[419966969,1775570496308,-539.63242624,0.00013208,2]
[419966970,1775570496344,-539.63242624,0.00013208,2]
[419966971,1775570496381,-539.63242624,0.00013208,2]
[419966972,1775570496419,-407.73426762,0.00013208,2]
[419966973,1775570497099,-131.89815862,0.00013208,2]
[419966974,1775570497109,-407.73426762,0.00013208,2]
[419966975,1775570497128,-131.89815862,0.00013208,2]
[419966976,1775570497138,-407.73426762,0.00013208,2]
[419966977,1775570512683,-131.89815862,0.00013208,2]
[419966978,1775570513336,-539.63242624,0.00013208,2]
[419966979,1775570513382,-539.63242624,0.00013208,2]
[419966980,1775570513426,-539.63242624,0.00013208,2]
[419966981,1775570513472,-539.63242624,0.00013208,2]
[419966982,1775570513515,-539.63242624,0.00013208,2]
[419966983,1775570513558,-539.63242624,0.00013208,2]
[419966984,1775570513601,-539.63242624,0.00013208,2]
[419966985,1775570513647,-539.63242624,0.00013208,2]
[419966986,1775570513703,-539.63242624,0.00013208,2]
[419966987,1775570515144,-539.63242624,0.00013208,2]
[419966988,1775570515186,-539.63242624,0.00013208,2]
[419966989,1775570515228,-539.63242624,0.00013208,2]
[419966990,1775570515270,-539.63242624,0.00013208,2]
[419966991,1775570515313,-539.63242624,0.00013208,2]
[419966992,1775570515356,-539.63242624,0.00013208,2]
[419966993,1775570515400,-539.63242624,0.00013208,2]
[419966994,1775570515444,-539.63242624,0.00013208,2]
[419966995,1775570515486,-539.63242624,0.00013208,2]
[419966996,1775570515543,-539.63242624,0.00013208,2]
[419966997,1775570515585,-539.63242624,0.00013208,2]
[419966998,1775570515628,-539.63242624,0.00013208,2]
[419966999,1775570515670,-539.63242624,0.00013208,2]
[419967000,1775570515711,-539.63242624,0.00013208,2]
[419967001,1775570515755,-539.63242624,0.00013208,2]
[419967002,1775570515797,-539.63242624,0.00013208,2]
[419967003,1775570515837,-539.63242624,0.00013208,2]
[419967004,1775570515878,-539.63242624,0.00013208,2]
[419967005,1775570516333,-539.63242624,0.00013208,2]
[419967006,1775570516376,-539.63242624,0.00013208,2]
[419967007,1775570516417,-539.63242624,0.00013208,2]
[419967008,1775570516458,-539.63242624,0.00013208,2]
[419967009,1775570516499,-539.63242624,0.00013208,2]
[419967010,1775570516540,-539.63242624,0.00013208,2]
[419967011,1775570516583,-500.0,0.00013208,2]
[419967012,1775570516623,-500.0,0.00013208,2]
[419967013,1775570516663,-500.0,0.00013208,2]
[419967014,1775570516702,-24.42088512,0.00013208,2]
[419967015,1775570517477,-475.57911488,0.00013208,2]
[419967016,1775570517517,-500.0,0.00013208,2]
[419967017,1775570517557,-500.0,0.00013208,2]
[419967018,1775570517595,-500.0,0.00013208,2]
[419967019,1775570517635,-500.0,0.00013208,2]
[419967020,1775570517674,-500.0,0.00013208,2]
[419967021,1775570517713,-500.0,0.00013208,2]
[419967022,1775570517751,-500.0,0.00013208,2]
[419967023,1775570517794,-500.0,0.00013208,2]
[419967024,1775570517832,-500.0,0.00013208,2]
[419967025,1775570517908,-500.0,0.00013208,2]
[419967026,1775570517947,-500.0,0.00013208,2]
[419967027,1775570517986,-500.0,0.00013208,2]
[419967028,1775570518023,-500.0,0.00013208,2]
[419967029,1775570518064,-500.0,0.00013208,2]
[419967030,1775570518105,-500.0,0.00013208,2]
[419967031,1775570518147,-500.0,0.00013208,2]
[419967032,1775570518186,-500.0,0.00013208,2]
[419967033,1775570518226,-500.0,0.00013208,2]
[419967034,1775570518265,-500.0,0.00013208,2]
[419967035,1775570519019,-144.93443604,0.00013208,2]
[419967036,1775570519035,-355.06556396,0.00013208,2]
[419967037,1775570519044,-144.93443604,0.00013208,2]
[419967038,1775570519059,-276.27745724,0.00013208,2]
[419967039,1775570519069,-223.72254276,0.00013209,2]
[419967040,1775570519085,-0.01,0.00013209,2]
[419967041,1775570529503,-500.0,0.00013114,2]
[419967042,1775570529535,-739.87927761,0.00013114,2]
[419967043,1775570529587,-7520.25144478,0.00013114,2]
[419967044,1775570529684,-500.0,0.00013169,2]
[419967045,1775570529715,-4361.65608769,0.00013169,2]
[419967046,1775570529757,-276.69782462,0.00013169,2]
[419967047,1775570529810,-1235.18214925,0.00013202,2]
[419967048,1775570529841,-623.58710448,0.00013202,2]
[419967049,1775570529873,-300.0,0.00013208,2]
[419967050,1775570529903,-151.54988003,0.00013209,2]
[419967051,1775570529933,-276.26745724,0.00013209,2]
[419967052,1775570529964,-234.92514662,0.00013209,2]
[419967053,1775570529998,-203.07711923,0.00013209,2]
[419967054,1775570530029,-500.0,0.00013209,2]
[419967055,1775570530059,-500.0,0.00013209,2]
[419967056,1775570530093,-385.55499592,0.00013209,2]
[419967057,1775570530126,-187.1618538,0.00013209,2]
[419967058,1775570530406,-805.39858686,0.0001321,2]
[419967059,1775570547872,-198.39676812,0.00013108,2]
[419967060,1775570547904,-198.39676812,0.0001311,2]
[419967061,1775570547936,-174.61919141,0.00013114,2]
[419967062,1775570547965,-798.52727141,0.00013202,2]
[419967063,1775570547997,-181.08010149,0.00013202,2]
[419967064,1775570548028,-151.0,0.00013207,2]
[419967065,1775570549474,151.0,0.00013114,2]
[419967066,1775570549679,151.0,0.00013169,2]
[419967067,1775570574220,3246.801,0.0001311,2]
[419967068,1775570576903,151.77280415,0.00013124,2]
[419967069,1775570601235,500.0,0.000131,2]
[419967070,1775570603870,500.0,0.00013209,2]
[419967071,1775570603909,500.0,0.00013209,2]
[419967072,1775570603946,500.0,0.00013209,2]
[419967073,1775570603986,500.0,0.00013209,2]
[419967074,1775570604022,395.39599475,0.00013209,2]
[419967075,1775570604050,104.60400525,0.00013209,2]
[419967076,1775570604083,500.0,0.00013209,2]
[419967077,1775570604117,500.0,0.00013209,2]
[419967078,1775570604151,500.0,0.00013209,2]
[419967079,1775570604204,500.0,0.00013209,2]
[419967080,1775570604239,500.0,0.00013209,2]
[419967081,1775570604282,500.0,0.00013209,2]
[419967082,1775570604333,500.0,0.00013209,2]
[419967083,1775570604400,500.0,0.00013209,2]
[419967084,1775570604444,500.0,0.00013209,2]
[419967085,1775570604489,500.0,0.00013209,2]
[419967086,1775570604527,500.0,0.00013209,2]
[419967087,1775570604568,500.0,0.00013209,2]
[419967088,1775570604607,500.0,0.00013209,2]
[419967089,1775570604649,453.9180075,0.00013209,2]
[419967090,1775570604705,500.0,0.00013209,2]
[419967091,1775570604829,46.0919925,0.00013209,2]
[419967092,1775570604858,453.9080075,0.00013209,2]
[419967093,1775570604901,500.0,0.00013209,2]
[419967094,1775570639076,500.0,0.00013209,2]
[419967095,1775570639603,469.88849714,0.00013209,2]
[419967096,1775570641540,300.0,0.00013209,2]
[419967097,1775570641782,480.0,0.00013209,2]
[419967098,1775570655466,-799.43619585,0.0001321,2]
[419967099,1775570655482,-10000.01,0.0001321,2]
[419967100,1775570655496,-10000.01,0.0001321,2]
[419967101,1775570655511,-10000.01,0.0001321,2]
[419967102,1775570655527,-10000.01,0.0001321,2]
[419967103,1775570655540,-10000.01,0.0001321,2]
[419967104,1775570655555,-10000.01,0.0001321,2]
[419967105,1775570666092,-10000.01,0.0001321,2]
[419967106,1775570678361,2296.21349536,0.0001311,2]
[419967107,1775570678387,2460.58526856,0.0001311,2]
[419967108,1775570689612,250.0,0.00013,2]
[419967109,1775570701650,1200.0,0.00013209,2]
[419967110,1775570701698,254.0,0.00013209,2]
[419967111,1775570701727,300.0,0.00013209,2]
[419967112,1775570731261,535.42473144,0.0001311,2]
[419967113,1775570731283,5000.01,0.0001311,2]
[419967114,1775570731304,5000.01,0.0001311,2]
[419967115,1775570731326,5000.01,0.0001311,2]
[419967116,1775570765158,-1224.89288064,0.0001311,2]
[419967117,1775570768023,-5000.01,0.0001311,2]
[419967118,1775570768145,-2317.07248792,0.0001311,2]
[419967119,1775570768179,-150.0,0.00013209,2]
[419967120,1775570768235,-65.86502416,0.00013209,2]
[419967121,1775570771124,-250.0,0.0001316,2]
[419967122,1775570771167,-434.13497584,0.00013209,2]
[419967123,1775570771208,-500.0,0.00013209,2]
[419967124,1775570771252,-500.0,0.00013209,2]
[419967125,1775570771294,-500.0,0.00013209,2]
[419967126,1775570771349,-131.74004832,0.00013209,2]
[419967127,1775570771556,-368.25995168,0.00013209,2]
[419967128,1775570774063,-784.91876008,0.0001311,2]
[419967129,1775570774102,-500.0,0.00013209,2]
[419967130,1775570774140,-500.0,0.00013209,2]
[419967131,1775570774178,-500.0,0.00013209,2]
[419967132,1775570774265,-430.17247984,0.00013209,2]
[419967133,1775570777257,-69.82752016,0.00013209,2]
[419967134,1775570777293,-500.0,0.00013209,2]
[419967135,1775570777332,-500.0,0.00013209,2]
[419967136,1775570777369,-500.0,0.00013209,2]
[419967137,1775570777406,-500.0,0.00013209,2]
[419967138,1775570777443,-360.35495968,0.00013209,2]
[419967139,1775570777541,-139.64504032,0.00013209,2]
[419967140,1775570780078,-241.93275266,0.00013209,2]
[419967141,1775570780108,-500.0,0.00013209,2]
[419967142,1775570780139,-324.44760263,0.00013209,2]
[419967143,1775570780171,-500.0,0.00013209,2]
[419967144,1775570807245,500.0,0.00013209,2]
[419967145,1775570807279,500.0,0.00013209,2]
[419967146,1775570807313,470.57447964,0.00013209,2]
[419967147,1775570818957,155.01,9.833e-05,2]
[419967148,1775570819009,155.01,0.00012291,2]
[419967149,1775570824785,86.65480978,0.00013209,2]
[419967150,1775570824808,413.34519022,0.00013209,2]
[419967151,1775570824837,500.0,0.00013209,2]
[419967152,1775570824991,500.0,0.00013209,2]
[419967153,1775570825135,500.0,0.00013209,2]
[419967154,1775570828665,1235.18214925,0.00013202,2]
[419967155,1775570838531,1000.0,0.00013209,2]
[419967156,1775570841917,174.61919141,0.00013202,2]
[419967157,1775570842047,151.0,0.00013202,2]
[419967158,1775570848111,525.86346912,0.0001311,2]
[419967159,1775570848139,3085.84060058,0.0001311,2]
[419967160,1775570857319,1914.16939942,0.00013,2]
[419967161,1775570858534,-1013.30060058,0.00013,2]
[419967162,1775570861148,2973.40879884,8e-05,2]
[419967163,1775570861183,2026.60120116,8e-05,2]
[419967164,1775570870558,-175.11854063,0.0001311,2]
[419967165,1775570873555,-2072.54,0.00013,2]
[419967166,1775570873581,-854.93,0.00013,2]
[419967167,1775570876851,-5000.01,0.0001311,2]
[419967168,1775570882622,-300.0,0.00013109,2]
[419967169,1775570882661,-4400.01,0.0001311,2]
[419967170,1775570888424,2599.936097,7.945e-05,2]
[419967171,1775570888639,-5000.01,0.0001311,2]
[419967177,1775570953133,-200.0,0.000123,2]
[419967178,1775570953157,-77.2308637,0.000123,2]
[419967190,1775571030508,-84.2791363,0.000123,2]
[419967191,1775571030539,-1005.0141714,0.00012933,2]
[419967192,1775571030578,-2821.4233846,0.00012933,2]
[419967195,1775571032230,-1200.0,0.00012999,2]
[419967196,1775571032240,-1200.0,0.00012999,2]
[419967197,1775571032250,-300.0,0.00012999,2]
[419967198,1775571032261,-2000.0,0.00013,2]
[419967199,1775571032270,-1388.57750018,0.00013,2]
[419967201,1775571032428,-1538.89249982,0.00013,2]
[419967203,1775571032438,-1377.86,0.00013,2]
[419967204,1775571032448,-219.00650716,0.000131,2]
[419967205,1775571032461,-280.99349284,0.000131,2]
[419967206,1775571032471,-72.32650716,0.00013109,2]
[419967221,1775571032654,-77.67349284,0.00013109,2]
[419967223,1775571032664,-257.24514698,0.00013109,2]
[419967228,1775571038189,-129.38036931,0.00013109,2]
[419967229,1775571038198,-234.39433087,0.00013109,2]
[419967230,1775571038348,-265.60566913,0.00013109,2]
[419967231,1775571038358,-572.76382372,0.00013109,2]
[419967232,1775571038368,-97.94126715,0.00013109,2]
[419967233,1775571038406,-87.64835203,0.00013109,2]
[419967234,1775571038416,-500.0,0.00013109,2]
[419967235,1775571038427,-178.921948,0.00013109,2]
[419967236,1775571038437,-500.0,0.00013109,2]
[419967237,1775571038447,-500.0,0.00013109,2]
[419967238,1775571038457,-500.0,0.00013109,2]
[419967239,1775571038467,-500.0,0.00013109,2]
[419967240,1775571038477,-427.40716995,0.00013109,2]
[419967241,1775571038488,-2000.0,0.0001311,2]
[419967242,1775571038498,-2002.6705591,0.0001311,2]
[419967243,1775571038507,-34889.95615937,0.0001311,2]
[419967244,1775571038526,-4024.9223,0.0001311,2]
[419967245,1775571038540,-31402.76098082,0.0001311,2]
[419967246,1775571038553,-1266.29973726,0.0001311,2]
[419967247,1775571038565,-2092.93649921,0.0001311,2]
[419967248,1775571038578,-10758.23582554,0.0001311,2]
[419967249,1775571038590,-1393.79179656,0.0001311,2]
[419967250,1775571038602,-3635.58978962,0.0001311,2]
[419967251,1775571038615,-6281.92214344,0.0001311,2]
[419967342,1775571041914,-1443168.46322755,0.0001311,2]
[419967343,1775571041925,-159.88642084,0.00013173,2]
[419967344,1775571041935,-500.0,0.0001321,2]
[419967345,1775571041946,-150.0,0.0001321,2]
[419967346,1775571041956,-151.0,0.00013257,2]
[419967347,1775571041967,-500.0,0.00013265,2]
[419967348,1775571041977,-150.0,0.00013279,2]
[419967349,1775571041988,-150.0,0.00013279,2]
[419967350,1775571041998,-150.0,0.00013279,2]
[419967351,1775571042010,-151.0,0.00013312,2]
[419967352,1775571042020,-655.76646378,0.0001332,2]
[419967353,1775571042030,-500.0,0.0001332,2]
[419967354,1775571042041,-3611.70406968,0.0001342,2]
[419967355,1775571042052,-500.0,0.00013426,2]
[419967356,1775571042064,-500.0,0.00013426,2]
[419967357,1775571042074,-530.88186197,0.00013426,2]
[419967358,1775571042085,-500.0,0.00013426,2]
[419967359,1775571042095,-500.0,0.00013426,2]
[419967360,1775571042106,-500.0,0.00013426,2]
[419967361,1775571042118,-500.0,0.00013426,2]
[419967362,1775571042128,-500.0,0.00013426,2]
[419967363,1775571042138,-500.0,0.00013426,2]
[419967364,1775571042148,-500.0,0.00013426,2]
[419967365,1775571042158,-500.0,0.00013426,2]
[419967366,1775571042168,-500.0,0.00013426,2]
[419967367,1775571042179,-500.0,0.00013426,2]
[419967368,1775571042190,-500.0,0.00013426,2]
[419967369,1775571042200,-500.0,0.00013426,2]
[419967370,1775571042210,-436.48877466,0.00013426,2]
[419967371,1775571042221,-150.0,0.00013426,2]
[419967372,1775571042231,-150.0,0.00013426,2]
[419967373,1775571042242,-287.9956919,0.00013426,2]
[419967374,1775571042252,-500.0,0.00013426,2]
[419967375,1775571042262,-500.01643822,0.00013426,2]
[419967376,1775571042273,-153.24085071,0.00013426,2]
[419967377,1775571042283,-500.0,0.00013426,2]
[419967378,1775571042295,-500.0,0.00013426,2]
[419967379,1775571042305,-232.18984881,0.00013426,2]